Workbook

Sheet Data Entry
A1: Date | B1: Raw TOC | C1: Raw Alk. | D1: Fin. TOC | E1: Fin. TTHM | F1: Fin HAA5 | G1: Comments | H1: DBP IND | I1: Month Date | J1: Quarter Date
A2: 2012-01-01 | E2: 0.056 | F2: 0.0476 | H2: =IF(OR(Table1[[#This Row],[Fin. TTHM]]="",Table1[[#This Row],[Fin HAA5]]=""),"NO","YES") -> YES | I2: =VALUE(MONTH(Table1[[#This Row],[Date]]) &"/1/"&YEAR(Table1[[#This Row],[Date]])) -> 2012-01-01 | J2: =IF("Q"&ROUNDUP(MONTH(I2)/3,0)="Q1",VALUE("1/1/"&YEAR(I2)),IF("Q"&ROUNDUP(MONTH(I2)/3,0)="Q2",VALUE("4/1/"&YEAR(I2)),IF("Q"&ROUNDUP(MONTH(I2)/3,0)="Q3",VALUE("7/1/"&YEAR(I2)),IF("Q" & ROUNDUP(MONTH(I2)/3,0)="Q4", VALUE("10/1/"&YEAR(I2)),"")))) -> 2012-01-01
A3: 2012-04-01 | E3: 0.0572 | F3: 0.0287 | H3: =IF(OR(Table1[[#This Row],[Fin. TTHM]]="",Table1[[#This Row],[Fin HAA5]]=""),"NO","YES") -> YES | I3: =VALUE(MONTH(Table1[[#This Row],[Date]]) &"/1/"&YEAR(Table1[[#This Row],[Date]])) -> 2012-04-01 | J3: 2012-04-01
A4: 2012-07-01 | E4: 0.0341 | F4: 0.0193 | H4: =IF(OR(Table1[[#This Row],[Fin. TTHM]]="",Table1[[#This Row],[Fin HAA5]]=""),"NO","YES") -> YES | I4: =VALUE(MONTH(Table1[[#This Row],[Date]]) &"/1/"&YEAR(Table1[[#This Row],[Date]])) -> 2012-07-01 | J4: 2012-07-01
A5: 2012-10-01 | E5: 0.0426 | F5: 0.042 | H5: =IF(OR(Table1[[#This Row],[Fin. TTHM]]="",Table1[[#This Row],[Fin HAA5]]=""),"NO","YES") -> YES | I5: =VALUE(MONTH(Table1[[#This Row],[Date]]) &"/1/"&YEAR(Table1[[#This Row],[Date]])) -> 2012-10-01 | J5: 2012-10-01
A6: 2013-01-01 | E6: 0.047 | F6: 0.0572 | H6: =IF(OR(Table1[[#This Row],[Fin. TTHM]]="",Table1[[#This Row],[Fin HAA5]]=""),"NO","YES") -> YES | I6: =VALUE(MONTH(Table1[[#This Row],[Date]]) &"/1/"&YEAR(Table1[[#This Row],[Date]])) -> 2013-01-01 | J6: 2013-01-01
A7: 2013-04-01 | E7: 0.0514 | F7: 0.0158 | H7: =IF(OR(Table1[[#This Row],[Fin. TTHM]]="",Table1[[#This Row],[Fin HAA5]]=""),"NO","YES") -> YES | I7: =VALUE(MONTH(Table1[[#This Row],[Date]]) &"/1/"&YEAR(Table1[[#This Row],[Date]])) -> 2013-04-01 | J7: 2013-04-01
A8: 2013-07-01 | E8: 0.0394 | F8: 0.0154 | H8: =IF(OR(Table1[[#This Row],[Fin. TTHM]]="",Table1[[#This Row],[Fin HAA5]]=""),"NO","YES") -> YES | I8: =VALUE(MONTH(Table1[[#This Row],[Date]]) &"/1/"&YEAR(Table1[[#This Row],[Date]])) -> 2013-07-01 | J8: 2013-07-01
A9: 2013-10-01 | E9: 0.0532 | F9: 0.0395 | H9: =IF(OR(Table1[[#This Row],[Fin. TTHM]]="",Table1[[#This Row],[Fin HAA5]]=""),"NO","YES") -> YES | I9: =VALUE(MONTH(Table1[[#This Row],[Date]]) &"/1/"&YEAR(Table1[[#This Row],[Date]])) -> 2013-10-01 | J9: 2013-10-01
A10: 2014-01-01 | E10: 0.03531 | F10: 0.0326 | H10: =IF(OR(Table1[[#This Row],[Fin. TTHM]]="",Table1[[#This Row],[Fin HAA5]]=""),"NO","YES") -> YES | I10: =VALUE(MONTH(Table1[[#This Row],[Date]]) &"/1/"&YEAR(Table1[[#This Row],[Date]])) -> 2014-01-01 | J10: 2014-01-01
A11: 2014-04-01 | E11: 0.0566 | F11: 0.0181 | H11: =IF(OR(Table1[[#This Row],[Fin. TTHM]]="",Table1[[#This Row],[Fin HAA5]]=""),"NO","YES") -> YES | I11: =VALUE(MONTH(Table1[[#This Row],[Date]]) &"/1/"&YEAR(Table1[[#This Row],[Date]])) -> 2014-04-01 | J11: 2014-04-01
A12: 2014-07-01 | E12: 0.0394 | F12: 0.0158 | H12: =IF(OR(Table1[[#This Row],[Fin. TTHM]]="",Table1[[#This Row],[Fin HAA5]]=""),"NO","YES") -> YES | I12: =VALUE(MONTH(Table1[[#This Row],[Date]]) &"/1/"&YEAR(Table1[[#This Row],[Date]])) -> 2014-07-01 | J12: 2014-07-01
A13: 2014-10-01 | E13: 0.0338 | F13: 0.0129 | H13: =IF(OR(Table1[[#This Row],[Fin. TTHM]]="",Table1[[#This Row],[Fin HAA5]]=""),"NO","YES") -> YES | I13: =VALUE(MONTH(Table1[[#This Row],[Date]]) &"/1/"&YEAR(Table1[[#This Row],[Date]])) -> 2014-10-01 | J13: 2014-10-01
A14: 2015-01-01 | E14: 0.0435 | F14: 0.0531 | H14: =IF(OR(Table1[[#This Row],[Fin. TTHM]]="",Table1[[#This Row],[Fin HAA5]]=""),"NO","YES") -> YES | I14: =VALUE(MONTH(Table1[[#This Row],[Date]]) &"/1/"&YEAR(Table1[[#This Row],[Date]])) -> 2015-01-01 | J14: 2015-01-01
A15: 2015-01-01 | B15: 2.3 | C15: 4 | D15: 1.5 | H15: =IF(OR(Table1[[#This Row],[Fin. TTHM]]="",Table1[[#This Row],[Fin HAA5]]=""),"NO","YES") -> NO | I15: =VALUE(MONTH(Table1[[#This Row],[Date]]) &"/1/"&YEAR(Table1[[#This Row],[Date]])) -> 2015-01-01 | J15: 2015-01-01
A16: 2015-02-01 | B16: 1.2 | C16: 4 | D16: 0.9 | H16: =IF(OR(Table1[[#This Row],[Fin. TTHM]]="",Table1[[#This Row],[Fin HAA5]]=""),"NO","YES") -> NO | I16: =VALUE(MONTH(Table1[[#This Row],[Date]]) &"/1/"&YEAR(Table1[[#This Row],[Date]])) -> 2015-02-01 | J16: 2015-01-01
A17: 2015-03-01 | B17: 2.2 | C17: 5 | D17: 1.3 | H17: =IF(OR(Table1[[#This Row],[Fin. TTHM]]="",Table1[[#This Row],[Fin HAA5]]=""),"NO","YES") -> NO | I17: =VALUE(MONTH(Table1[[#This Row],[Date]]) &"/1/"&YEAR(Table1[[#This Row],[Date]])) -> 2015-03-01 | J17: 2015-01-01
A18: 2015-04-01 | E18: 0.0316 | F18: 0.0104 | H18: =IF(OR(Table1[[#This Row],[Fin. TTHM]]="",Table1[[#This Row],[Fin HAA5]]=""),"NO","YES") -> YES | I18: =VALUE(MONTH(Table1[[#This Row],[Date]]) &"/1/"&YEAR(Table1[[#This Row],[Date]])) -> 2015-04-01 | J18: 2015-04-01
A19: 2015-04-01 | B19: 5 | C19: 4 | D19: 1.4 | H19: =IF(OR(Table1[[#This Row],[Fin. TTHM]]="",Table1[[#This Row],[Fin HAA5]]=""),"NO","YES") -> NO | I19: =VALUE(MONTH(Table1[[#This Row],[Date]]) &"/1/"&YEAR(Table1[[#This Row],[Date]])) -> 2015-04-01 | J19: 2015-04-01
A20: 2015-05-01 | B20: 2.3 | C20: 4 | D20: 1.1 | H20: =IF(OR(Table1[[#This Row],[Fin. TTHM]]="",Table1[[#This Row],[Fin HAA5]]=""),"NO","YES") -> NO | I20: =VALUE(MONTH(Table1[[#This Row],[Date]]) &"/1/"&YEAR(Table1[[#This Row],[Date]])) -> 2015-05-01 | J20: 2015-04-01
A21: 2015-06-01 | B21: 2.6 | C21: 5 | D21: 1.3 | H21: =IF(OR(Table1[[#This Row],[Fin. TTHM]]="",Table1[[#This Row],[Fin HAA5]]=""),"NO","YES") -> NO | I21: =VALUE(MONTH(Table1[[#This Row],[Date]]) &"/1/"&YEAR(Table1[[#This Row],[Date]])) -> 2015-06-01 | J21: 2015-04-01
A22: 2015-07-01 | E22: 0.04 | F22: 0.0141 | H22: =IF(OR(Table1[[#This Row],[Fin. TTHM]]="",Table1[[#This Row],[Fin HAA5]]=""),"NO","YES") -> YES | I22: =VALUE(MONTH(Table1[[#This Row],[Date]]) &"/1/"&YEAR(Table1[[#This Row],[Date]])) -> 2015-07-01 | J22: 2015-07-01
A23: 2015-07-01 | B23: 1.5 | C23: 4 | D23: 0.8 | H23: =IF(OR(Table1[[#This Row],[Fin. TTHM]]="",Table1[[#This Row],[Fin HAA5]]=""),"NO","YES") -> NO | I23: =VALUE(MONTH(Table1[[#This Row],[Date]]) &"/1/"&YEAR(Table1[[#This Row],[Date]])) -> 2015-07-01 | J23: 2015-07-01
A24: 2015-08-01 | B24: 1.4 | C24: 5 | D24: 0.7 | H24: =IF(OR(Table1[[#This Row],[Fin. TTHM]]="",Table1[[#This Row],[Fin HAA5]]=""),"NO","YES") -> NO | I24: =VALUE(MONTH(Table1[[#This Row],[Date]]) &"/1/"&YEAR(Table1[[#This Row],[Date]])) -> 2015-08-01 | J24: 2015-07-01
A25: 2015-09-01 | B25: 1.8 | C25: 5 | D25: 0.8 | H25: =IF(OR(Table1[[#This Row],[Fin. TTHM]]="",Table1[[#This Row],[Fin HAA5]]=""),"NO","YES") -> NO | I25: =VALUE(MONTH(Table1[[#This Row],[Date]]) &"/1/"&YEAR(Table1[[#This Row],[Date]])) -> 2015-09-01 | J25: 2015-07-01
A26: 2015-10-01 | E26: 0.044 | F26: 0.044 | H26: =IF(OR(Table1[[#This Row],[Fin. TTHM]]="",Table1[[#This Row],[Fin HAA5]]=""),"NO","YES") -> YES | I26: =VALUE(MONTH(Table1[[#This Row],[Date]]) &"/1/"&YEAR(Table1[[#This Row],[Date]])) -> 2015-10-01 | J26: 2015-10-01
A27: 2015-10-01 | B27: 1.5 | C27: 5 | D27: 0.8 | H27: =IF(OR(Table1[[#This Row],[Fin. TTHM]]="",Table1[[#This Row],[Fin HAA5]]=""),"NO","YES") -> NO | I27: =VALUE(MONTH(Table1[[#This Row],[Date]]) &"/1/"&YEAR(Table1[[#This Row],[Date]])) -> 2015-10-01 | J27: 2015-10-01
A28: 2015-11-01 | B28: 3.1 | C28: 5 | D28: 1.5 | H28: =IF(OR(Table1[[#This Row],[Fin. TTHM]]="",Table1[[#This Row],[Fin HAA5]]=""),"NO","YES") -> NO | I28: =VALUE(MONTH(Table1[[#This Row],[Date]]) &"/1/"&YEAR(Table1[[#This Row],[Date]])) -> 2015-11-01 | J28: 2015-10-01
A29: 2015-12-01 | B29: 4.8 | C29: 6 | D29: 2.4 | H29: =IF(OR(Table1[[#This Row],[Fin. TTHM]]="",Table1[[#This Row],[Fin HAA5]]=""),"NO","YES") -> NO | I29: =VALUE(MONTH(Table1[[#This Row],[Date]]) &"/1/"&YEAR(Table1[[#This Row],[Date]])) -> 2015-12-01 | J29: 2015-10-01
A30: 2016-01-01 | E30: 0.0749 | F30: 0.0632 | H30: =IF(OR(Table1[[#This Row],[Fin. TTHM]]="",Table1[[#This Row],[Fin HAA5]]=""),"NO","YES") -> YES | I30: =VALUE(MONTH(Table1[[#This Row],[Date]]) &"/1/"&YEAR(Table1[[#This Row],[Date]])) -> 2016-01-01 | J30: 2016-01-01
A31: 2016-01-01 | B31: 1.4 | C31: 4 | D31: 0.9 | H31: =IF(OR(Table1[[#This Row],[Fin. TTHM]]="",Table1[[#This Row],[Fin HAA5]]=""),"NO","YES") -> NO | I31: =VALUE(MONTH(Table1[[#This Row],[Date]]) &"/1/"&YEAR(Table1[[#This Row],[Date]])) -> 2016-01-01 | J31: 2016-01-01
A32: 2016-02-01 | B32: 5.8 | C32: 5 | D32: 2.2 | H32: =IF(OR(Table1[[#This Row],[Fin. TTHM]]="",Table1[[#This Row],[Fin HAA5]]=""),"NO","YES") -> NO | I32: =VALUE(MONTH(Table1[[#This Row],[Date]]) &"/1/"&YEAR(Table1[[#This Row],[Date]])) -> 2016-02-01 | J32: 2016-01-01
A33: 2016-03-01 | B33: 2.6 | C33: 4 | D33: 1.4 | H33: =IF(OR(Table1[[#This Row],[Fin. TTHM]]="",Table1[[#This Row],[Fin HAA5]]=""),"NO","YES") -> NO | I33: =VALUE(MONTH(Table1[[#This Row],[Date]]) &"/1/"&YEAR(Table1[[#This Row],[Date]])) -> 2016-03-01 | J33: 2016-01-01
A34: 2016-04-01 | E34: 0.0268 | F34: 0.0111 | H34: =IF(OR(Table1[[#This Row],[Fin. TTHM]]="",Table1[[#This Row],[Fin HAA5]]=""),"NO","YES") -> YES | I34: =VALUE(MONTH(Table1[[#This Row],[Date]]) &"/1/"&YEAR(Table1[[#This Row],[Date]])) -> 2016-04-01 | J34: =IF("Q"&ROUNDUP(MONTH(I34)/3,0)="Q1",VALUE("1/1/"&YEAR(I34)),IF("Q"&ROUNDUP(MONTH(I34)/3,0)="Q2",VALUE("4/1/"&YEAR(I34)),IF("Q"&ROUNDUP(MONTH(I34)/3,0)="Q3",VALUE("7/1/"&YEAR(I34)),IF("Q" & ROUNDUP(MONTH(I34)/3,0)="Q4", VALUE("10/1/"&YEAR(I34)),"")))) -> 2016-04-01
A35: 2016-04-01 | B35: 1.8 | C35: 5 | D35: 1.1 | H35: =IF(OR(Table1[[#This Row],[Fin. TTHM]]="",Table1[[#This Row],[Fin HAA5]]=""),"NO","YES") -> NO | I35: =VALUE(MONTH(Table1[[#This Row],[Date]]) &"/1/"&YEAR(Table1[[#This Row],[Date]])) -> 2016-04-01 | J35: 2016-04-01
A36: 2016-05-01 | B36: 2.3 | C36: 5 | D36: 1.2 | H36: =IF(OR(Table1[[#This Row],[Fin. TTHM]]="",Table1[[#This Row],[Fin HAA5]]=""),"NO","YES") -> NO | I36: =VALUE(MONTH(Table1[[#This Row],[Date]]) &"/1/"&YEAR(Table1[[#This Row],[Date]])) -> 2016-05-01 | J36: 2016-04-01
A37: 2016-06-01 | B37: 1.6 | C37: 4 | D37: 0.7 | H37: =IF(OR(Table1[[#This Row],[Fin. TTHM]]="",Table1[[#This Row],[Fin HAA5]]=""),"NO","YES") -> NO | I37: =VALUE(MONTH(Table1[[#This Row],[Date]]) &"/1/"&YEAR(Table1[[#This Row],[Date]])) -> 2016-06-01 | J37: 2016-04-01
A38: 2016-07-01 | E38: 0.0358 | F38: 0.019 | H38: =IF(OR(Table1[[#This Row],[Fin. TTHM]]="",Table1[[#This Row],[Fin HAA5]]=""),"NO","YES") -> YES | I38: =VALUE(MONTH(Table1[[#This Row],[Date]]) &"/1/"&YEAR(Table1[[#This Row],[Date]])) -> 2016-07-01 | J38: 2016-07-01
A39: 2016-07-01 | B39: 3.3 | C39: 5 | D39: 2.1 | H39: =IF(OR(Table1[[#This Row],[Fin. TTHM]]="",Table1[[#This Row],[Fin HAA5]]=""),"NO","YES") -> NO | I39: =VALUE(MONTH(Table1[[#This Row],[Date]]) &"/1/"&YEAR(Table1[[#This Row],[Date]])) -> 2016-07-01 | J39: 2016-07-01
A40: 2016-08-01 | B40: 2.4 | C40: 5 | D40: 1.4 | H40: =IF(OR(Table1[[#This Row],[Fin. TTHM]]="",Table1[[#This Row],[Fin HAA5]]=""),"NO","YES") -> NO | I40: =VALUE(MONTH(Table1[[#This Row],[Date]]) &"/1/"&YEAR(Table1[[#This Row],[Date]])) -> 2016-08-01 | J40: 2016-07-01
A41: 2016-09-01 | B41: 1.4 | C41: 4 | D41: 0.8 | H41: =IF(OR(Table1[[#This Row],[Fin. TTHM]]="",Table1[[#This Row],[Fin HAA5]]=""),"NO","YES") -> NO | I41: =VALUE(MONTH(Table1[[#This Row],[Date]]) &"/1/"&YEAR(Table1[[#This Row],[Date]])) -> 2016-09-01 | J41: 2016-07-01
A42: 2016-10-01 | E42: 0.0336 | F42: 0.0191 | H42: =IF(OR(Table1[[#This Row],[Fin. TTHM]]="",Table1[[#This Row],[Fin HAA5]]=""),"NO","YES") -> YES | I42: =VALUE(MONTH(Table1[[#This Row],[Date]]) &"/1/"&YEAR(Table1[[#This Row],[Date]])) -> 2016-10-01 | J42: 2016-10-01
A43: 2016-10-01 | B43: 1.4 | C43: 6 | D43: 0.7 | H43: =IF(OR(Table1[[#This Row],[Fin. TTHM]]="",Table1[[#This Row],[Fin HAA5]]=""),"NO","YES") -> NO | I43: =VALUE(MONTH(Table1[[#This Row],[Date]]) &"/1/"&YEAR(Table1[[#This Row],[Date]])) -> 2016-10-01 | J43: 2016-10-01
A44: 2016-11-01 | B44: 1.9 | C44: 6 | D44: 0.9 | H44: =IF(OR(Table1[[#This Row],[Fin. TTHM]]="",Table1[[#This Row],[Fin HAA5]]=""),"NO","YES") -> NO | I44: =VALUE(MONTH(Table1[[#This Row],[Date]]) &"/1/"&YEAR(Table1[[#This Row],[Date]])) -> 2016-11-01 | J44: 2016-10-01
A45: 2016-12-01 | B45: 4 | C45: 6 | D45: 2.9 | H45: =IF(OR(Table1[[#This Row],[Fin. TTHM]]="",Table1[[#This Row],[Fin HAA5]]=""),"NO","YES") -> NO | I45: =VALUE(MONTH(Table1[[#This Row],[Date]]) &"/1/"&YEAR(Table1[[#This Row],[Date]])) -> 2016-12-01 | J45: 2016-10-01
A46: 2017-01-01 | E46: 0.0226 | F46: 0.0115 | H46: =IF(OR(Table1[[#This Row],[Fin. TTHM]]="",Table1[[#This Row],[Fin HAA5]]=""),"NO","YES") -> YES | I46: =VALUE(MONTH(Table1[[#This Row],[Date]]) &"/1/"&YEAR(Table1[[#This Row],[Date]])) -> 2017-01-01 | J46: 2017-01-01
A47: 2017-01-15 | B47: 2.7 | C47: 4 | D47: 1.9 | H47: =IF(OR(Table1[[#This Row],[Fin. TTHM]]="",Table1[[#This Row],[Fin HAA5]]=""),"NO","YES") -> NO | I47: =VALUE(MONTH(Table1[[#This Row],[Date]]) &"/1/"&YEAR(Table1[[#This Row],[Date]])) -> 2017-01-01 | J47: 2017-01-01
A48: 2017-02-18 | B48: 1.7 | C48: 6 | D48: 1 | H48: =IF(OR(Table1[[#This Row],[Fin. TTHM]]="",Table1[[#This Row],[Fin HAA5]]=""),"NO","YES") -> NO | I48: =VALUE(MONTH(Table1[[#This Row],[Date]]) &"/1/"&YEAR(Table1[[#This Row],[Date]])) -> 2017-02-01 | J48: 2017-01-01
A49: 2017-03-01 | B49: 3.4 | C49: 5 | D49: 2.3 | H49: =IF(OR(Table1[[#This Row],[Fin. TTHM]]="",Table1[[#This Row],[Fin HAA5]]=""),"NO","YES") -> NO | I49: =VALUE(MONTH(Table1[[#This Row],[Date]]) &"/1/"&YEAR(Table1[[#This Row],[Date]])) -> 2017-03-01 | J49: 2017-01-01
A50: 2017-04-01 | B50: 2.8 | C50: 5 | D50: 1.45 | H50: =IF(OR(Table1[[#This Row],[Fin. TTHM]]="",Table1[[#This Row],[Fin HAA5]]=""),"NO","YES") -> NO | I50: =VALUE(MONTH(Table1[[#This Row],[Date]]) &"/1/"&YEAR(Table1[[#This Row],[Date]])) -> 2017-04-01 | J50: 2017-04-01
A51: 2017-04-25 | E51: 0.0242 | F51: 0.00798 | H51: =IF(OR(Table1[[#This Row],[Fin. TTHM]]="",Table1[[#This Row],[Fin HAA5]]=""),"NO","YES") -> YES | I51: =VALUE(MONTH(Table1[[#This Row],[Date]]) &"/1/"&YEAR(Table1[[#This Row],[Date]])) -> 2017-04-01 | J51: 2017-04-01
A52: 2017-05-01 | B52: 1.8 | C52: 4 | D52: 0.9 | H52: =IF(OR(Table1[[#This Row],[Fin. TTHM]]="",Table1[[#This Row],[Fin HAA5]]=""),"NO","YES") -> NO | I52: =VALUE(MONTH(Table1[[#This Row],[Date]]) &"/1/"&YEAR(Table1[[#This Row],[Date]])) -> 2017-05-01 | J52: 2017-04-01
A53: 2017-06-01 | B53: 4 | C53: 5 | D53: 2.2 | H53: =IF(OR(Table1[[#This Row],[Fin. TTHM]]="",Table1[[#This Row],[Fin HAA5]]=""),"NO","YES") -> NO | I53: =VALUE(MONTH(Table1[[#This Row],[Date]]) &"/1/"&YEAR(Table1[[#This Row],[Date]])) -> 2017-06-01 | J53: 2017-04-01
A54: 2017-07-20 | E54: 0.0337 | F54: 0.0145 | H54: =IF(OR(Table1[[#This Row],[Fin. TTHM]]="",Table1[[#This Row],[Fin HAA5]]=""),"NO","YES") -> YES | I54: =VALUE(MONTH(Table1[[#This Row],[Date]]) &"/1/"&YEAR(Table1[[#This Row],[Date]])) -> 2017-07-01 | J54: 2017-07-01
A55: 2017-07-20 | B55: 1.7 | C55: 6 | D55: 0.8 | H55: =IF(OR(Table1[[#This Row],[Fin. TTHM]]="",Table1[[#This Row],[Fin HAA5]]=""),"NO","YES") -> NO | I55: =VALUE(MONTH(Table1[[#This Row],[Date]]) &"/1/"&YEAR(Table1[[#This Row],[Date]])) -> 2017-07-01 | J55: 2017-07-01
A56: 2017-08-01 | B56: 1.4 | C56: 4 | D56: 0.5 | H56: =IF(OR(Table1[[#This Row],[Fin. TTHM]]="",Table1[[#This Row],[Fin HAA5]]=""),"NO","YES") -> NO | I56: =VALUE(MONTH(Table1[[#This Row],[Date]]) &"/1/"&YEAR(Table1[[#This Row],[Date]])) -> 2017-08-01 | J56: 2017-07-01
A57: 2017-09-01 | B57: 3.4 | C57: 6 | D57: 1.6 | H57: =IF(OR(Table1[[#This Row],[Fin. TTHM]]="",Table1[[#This Row],[Fin HAA5]]=""),"NO","YES") -> NO | I57: =VALUE(MONTH(Table1[[#This Row],[Date]]) &"/1/"&YEAR(Table1[[#This Row],[Date]])) -> 2017-09-01 | J57: 2017-07-01
A58: 2017-10-01 | B58: 1.7 | C58: 5 | D58: 0.9 | H58: =IF(OR(Table1[[#This Row],[Fin. TTHM]]="",Table1[[#This Row],[Fin HAA5]]=""),"NO","YES") -> NO | I58: =VALUE(MONTH(Table1[[#This Row],[Date]]) &"/1/"&YEAR(Table1[[#This Row],[Date]])) -> 2017-10-01 | J58: 2017-10-01
A59: 2017-10-15 | E59: 0.0157 | F59: 0.00765 | H59: =IF(OR(Table1[[#This Row],[Fin. TTHM]]="",Table1[[#This Row],[Fin HAA5]]=""),"NO","YES") -> YES | I59: =VALUE(MONTH(Table1[[#This Row],[Date]]) &"/1/"&YEAR(Table1[[#This Row],[Date]])) -> 2017-10-01 | J59: 2017-10-01
A60: 2017-11-01 | B60: 1.8 | C60: 5 | D60: 0.9 | H60: =IF(OR(Table1[[#This Row],[Fin. TTHM]]="",Table1[[#This Row],[Fin HAA5]]=""),"NO","YES") -> NO | I60: =VALUE(MONTH(Table1[[#This Row],[Date]]) &"/1/"&YEAR(Table1[[#This Row],[Date]])) -> 2017-11-01 | J60: 2017-10-01
A61: 2017-12-01 | B61: 5.2 | C61: 6 | D61: 3 | H61: =IF(OR(Table1[[#This Row],[Fin. TTHM]]="",Table1[[#This Row],[Fin HAA5]]=""),"NO","YES") -> NO | I61: =VALUE(MONTH(Table1[[#This Row],[Date]]) &"/1/"&YEAR(Table1[[#This Row],[Date]])) -> 2017-12-01 | J61: 2017-10-01

Sheet WTP INFO
B1: Water System Name | P1: End Date
B2: PWSID # AL000XXXX | P2: 2017-12-31
B3: Water Treatment Plant Name
B4: Source Water Name
B5: TOC Results Past 12 Months
C6: =EDATE(N6,-11) -> 2017-01-01 | D6: =EDATE(N6,-10) -> 2017-02-01 | E6: =EDATE(N6,-9) -> 2017-03-01 | F6: =EDATE(N6,-8) -> 2017-04-01 | G6: =EDATE(N6,-7) -> 2017-05-01 | H6: =EDATE(N6,-6) -> 2017-06-01 | I6: =EDATE(N6,-5) -> 2017-07-01 | J6: =EDATE(N6,-4) -> 2017-08-01 | K6: =EDATE(N6,-3) -> 2017-09-01 | L6: =EDATE(N6,-2) -> 2017-10-01 | M6: =EDATE(N6,-1) -> 2017-11-01 | N6: =VALUE(MONTH(P2) &"/1/"&YEAR(P2)) -> 2017-12-01
B7: Raw Alkalinity | C7: =VLOOKUP(C6,'Pivot Tables'!$B$3:$E$1048576,3) -> 4 | D7: =VLOOKUP(D6,'Pivot Tables'!$B$3:$E$1048576,3) -> 6 | E7: =VLOOKUP(E6,'Pivot Tables'!$B$3:$E$1048576,3) -> 5 | F7: =VLOOKUP(F6,'Pivot Tables'!$B$3:$E$1048576,3) -> 5 | G7: =VLOOKUP(G6,'Pivot Tables'!$B$3:$E$1048576,3) -> 4 | H7: =VLOOKUP(H6,'Pivot Tables'!$B$3:$E$1048576,3) -> 5 | I7: =VLOOKUP(I6,'Pivot Tables'!$B$3:$E$1048576,3) -> 6 | J7: =VLOOKUP(J6,'Pivot Tables'!$B$3:$E$1048576,3) -> 4 | K7: =VLOOKUP(K6,'Pivot Tables'!$B$3:$E$1048576,3) -> 6 | L7: =VLOOKUP(L6,'Pivot Tables'!$B$3:$E$1048576,3) -> 5 | M7: =VLOOKUP(M6,'Pivot Tables'!$B$3:$E$1048576,3) -> 5 | N7: =VLOOKUP(N6,'Pivot Tables'!$B$3:$E$1048576,3) -> 6
B8: Raw TOC | C8: =VLOOKUP(C6,'Pivot Tables'!$B$3:$E$1048576,2) -> 2.7 | D8: =VLOOKUP(D6,'Pivot Tables'!$B$3:$E$1048576,2) -> 1.7 | E8: =VLOOKUP(E6,'Pivot Tables'!$B$3:$E$1048576,2) -> 3.4 | F8: =VLOOKUP(F6,'Pivot Tables'!$B$3:$E$1048576,2) -> 2.8 | G8: =VLOOKUP(G6,'Pivot Tables'!$B$3:$E$1048576,2) -> 1.8 | H8: =VLOOKUP(H6,'Pivot Tables'!$B$3:$E$1048576,2) -> 4 | I8: =VLOOKUP(I6,'Pivot Tables'!$B$3:$E$1048576,2) -> 1.7 | J8: =VLOOKUP(J6,'Pivot Tables'!$B$3:$E$1048576,2) -> 1.4 | K8: =VLOOKUP(K6,'Pivot Tables'!$B$3:$E$1048576,2) -> 3.4 | L8: =VLOOKUP(L6,'Pivot Tables'!$B$3:$E$1048576,2) -> 1.7 | M8: =VLOOKUP(M6,'Pivot Tables'!$B$3:$E$1048576,2) -> 1.8 | N8: =VLOOKUP(N6,'Pivot Tables'!$B$3:$E$1048576,2) -> 5.2
B9: Finished TOC | C9: =VLOOKUP(C6,'Pivot Tables'!$B$3:$E$1048576,4) -> 1.9 | D9: =VLOOKUP(D6,'Pivot Tables'!$B$3:$E$1048576,4) -> 1 | E9: =VLOOKUP(E6,'Pivot Tables'!$B$3:$E$1048576,4) -> 2.3 | F9: =VLOOKUP(F6,'Pivot Tables'!$B$3:$E$1048576,4) -> 1.45 | G9: =VLOOKUP(G6,'Pivot Tables'!$B$3:$E$1048576,4) -> 0.9 | H9: =VLOOKUP(H6,'Pivot Tables'!$B$3:$E$1048576,4) -> 2.2 | I9: =VLOOKUP(I6,'Pivot Tables'!$B$3:$E$1048576,4) -> 0.8 | J9: =VLOOKUP(J6,'Pivot Tables'!$B$3:$E$1048576,4) -> 0.5 | K9: =VLOOKUP(K6,'Pivot Tables'!$B$3:$E$1048576,4) -> 1.6 | L9: =VLOOKUP(L6,'Pivot Tables'!$B$3:$E$1048576,4) -> 0.9 | M9: =VLOOKUP(M6,'Pivot Tables'!$B$3:$E$1048576,4) -> 0.9 | N9: =VLOOKUP(N6,'Pivot Tables'!$B$3:$E$1048576,4) -> 3
B10: Removal Percentage | C10: =IFERROR((C8-C9)/C8,"") -> 0.2962962963 | D10: =IFERROR((D8-D9)/D8,"") -> 0.4117647059 | E10: 0.3235294118 | F10: 0.4821428571 | G10: 0.5 | H10: 0.45 | I10: 0.5294117647 | J10: 0.6428571429 | K10: 0.5294117647 | L10: 0.4705882353 | M10: 0.5 | N10: 0.4230769231
B11: Required Removal | C11: =IF(AND((C$7<=60),(C$8<=4)),0.35,IF(AND((C$7<=60),(C$8<=8)),0.45,IF(AND((C$7<=60),(C$8>8)),0.5,IF(AND((C$7<=120),(C$8<=4)),0.25,IF(AND((C$7<=120),(C$8<=8)),0.35,IF(AND((C$7<=120),(C$8>8)),0.4,IF(AND((C$7>120),(C$8<=4)),0.15,IF(AND((C$7>120),(C$8<=8)),0.25,IF(AND((C$7>120),(C$8>8)),0.3,0))))))))) -> 0.35 | D11: =IF(AND((D$7<=60),(D$8<=4)),0.35,IF(AND((D$7<=60),(D$8<=8)),0.45,IF(AND((D$7<=60),(D$8>8)),0.5,IF(AND((D$7<=120),(D$8<=4)),0.25,IF(AND((D$7<=120),(D$8<=8)),0.35,IF(AND((D$7<=120),(D$8>8)),0.4,IF(AND((D$7>120),(D$8<=4)),0.15,IF(AND((D$7>120),(D$8<=8)),0.25,IF(AND((D$7>120),(D$8>8)),0.3,0))))))))) -> 0.35 | E11: =IF(AND((E$7<=60),(E$8<=4)),0.35,IF(AND((E$7<=60),(E$8<=8)),0.45,IF(AND((E$7<=60),(E$8>8)),0.5,IF(AND((E$7<=120),(E$8<=4)),0.25,IF(AND((E$7<=120),(E$8<=8)),0.35,IF(AND((E$7<=120),(E$8>8)),0.4,IF(AND((E$7>120),(E$8<=4)),0.15,IF(AND((E$7>120),(E$8<=8)),0.25,IF(AND((E$7>120),(E$8>8)),0.3,0))))))))) -> 0.35 | F11: 0.35 | G11: 0.35 | H11: 0.35 | I11: 0.35 | J11: 0.35 | K11: 0.35 | L11: 0.35 | M11: 0.35 | N11: 0.45
B12: Calculated PR | C12: =IFERROR(((C8-C9)/C8)/C11,"") -> 0.8465608466 | D12: =IFERROR(((D8-D9)/D8)/D11,"") -> 1.176470588 | E12: 0.9243697479 | F12: 1.37755102 | G12: 1.428571429 | H12: 1.285714286 | I12: 1.512605042 | J12: 1.836734694 | K12: 1.512605042 | L12: 1.344537815 | M12: 1.428571429 | N12: 0.9401709402
B13: Alternate PR | C13: =IF(OR((C8<2),(C9<2)),1,0) -> 1 | D13: =IF(OR((D8<2),(D9<2)),1,0) -> 1 | E13: 0 | F13: 1 | G13: 1 | H13: 0 | I13: 1 | J13: 1 | K13: 1 | L13: 1 | M13: 1 | N13: 0
B14: Selected PR | C14: =MAX(C12:C13) -> 1 | D14: =MAX(D12:D13) -> 1.176470588 | E14: 0.9243697479 | F14: 1.37755102 | G14: 1.428571429 | H14: 1.285714286 | I14: 1.512605042 | J14: 1.836734694 | K14: 1.512605042 | L14: 1.344537815 | M14: 1.428571429 | N14: 0.9401709402
B15: Compliance PR | C15: The Compliance PR must be greater than or equal to 1.00 or finished TOC average < 2.0 mg/L | N15: =IFERROR(AVERAGE(C14:N14),"ERROR") -> 1.313991836
B17: Finished TOC RAA Goal ≤ 1.7 mg/L
B19: FINISHED TOC GOAL | C19: 1.7 | D19: 1.7 | E19: 1.7 | F19: 1.7 | G19: 1.7 | H19: 1.7 | I19: 1.7 | J19: 1.7 | K19: 1.7 | L19: 1.7 | M19: 1.7 | N19: 1.7
B20: PR Regulatory Requirement | C20: 1 | D20: 1 | E20: 1 | F20: 1 | G20: 1 | H20: 1 | I20: 1 | J20: 1 | K20: 1 | L20: 1 | M20: 1 | N20: 1
B40: WTP Effluent Individual DBP Sample Results (Past 3 Years)
B41: WTP Effluent | C41: ="Q" & ROUNDUP(MONTH(C46)/3,0)&" " & YEAR(C46) -> Q1 2015 | D41: Q2 2015 | E41: Q3 2015 | F41: Q4 2015 | G41: Q1 2016 | H41: Q2 2016 | I41: Q3 2016 | J41: Q4 2016 | K41: Q1 2017 | L41: Q2 2017 | M41: Q3 2017 | N41: ="Q" & ROUNDUP(MONTH(N46)/3,0)&" " & YEAR(N46) -> Q4 2017
B42: TTHM | C42: =VLOOKUP(C46,'Pivot Tables'!$G$3:$I$1048576,2)*1000 -> 43.5 | D42: =VLOOKUP(D46,'Pivot Tables'!$G$3:$I$1048576,2)*1000 -> 31.6 | E42: =VLOOKUP(E46,'Pivot Tables'!$G$3:$I$1048576,2)*1000 -> 40 | F42: =VLOOKUP(F46,'Pivot Tables'!$G$3:$I$1048576,2)*1000 -> 44 | G42: =VLOOKUP(G46,'Pivot Tables'!$G$3:$I$1048576,2)*1000 -> 74.9 | H42: =VLOOKUP(H46,'Pivot Tables'!$G$3:$I$1048576,2)*1000 -> 26.8 | I42: =VLOOKUP(I46,'Pivot Tables'!$G$3:$I$1048576,2)*1000 -> 35.8 | J42: =VLOOKUP(J46,'Pivot Tables'!$G$3:$I$1048576,2)*1000 -> 33.6 | K42: =VLOOKUP(K46,'Pivot Tables'!$G$3:$I$1048576,2)*1000 -> 22.6 | L42: =VLOOKUP(L46,'Pivot Tables'!$G$3:$I$1048576,2)*1000 -> 24.2 | M42: =VLOOKUP(M46,'Pivot Tables'!$G$3:$I$1048576,2)*1000 -> 33.7 | N42: =VLOOKUP(N46,'Pivot Tables'!$G$3:$I$1048576,2)*1000 -> 15.7
B43: HAA5 | C43: =VLOOKUP(C46,'Pivot Tables'!$G$3:$I$1048576,3)*1000 -> 53.1 | D43: =VLOOKUP(D46,'Pivot Tables'!$G$3:$I$1048576,3)*1000 -> 10.4 | E43: =VLOOKUP(E46,'Pivot Tables'!$G$3:$I$1048576,3)*1000 -> 14.1 | F43: =VLOOKUP(F46,'Pivot Tables'!$G$3:$I$1048576,3)*1000 -> 44 | G43: =VLOOKUP(G46,'Pivot Tables'!$G$3:$I$1048576,3)*1000 -> 63.2 | H43: =VLOOKUP(H46,'Pivot Tables'!$G$3:$I$1048576,3)*1000 -> 11.1 | I43: =VLOOKUP(I46,'Pivot Tables'!$G$3:$I$1048576,3)*1000 -> 19 | J43: =VLOOKUP(J46,'Pivot Tables'!$G$3:$I$1048576,3)*1000 -> 19.1 | K43: =VLOOKUP(K46,'Pivot Tables'!$G$3:$I$1048576,3)*1000 -> 11.5 | L43: =VLOOKUP(L46,'Pivot Tables'!$G$3:$I$1048576,3)*1000 -> 7.98 | M43: =VLOOKUP(M46,'Pivot Tables'!$G$3:$I$1048576,3)*1000 -> 14.5 | N43: =VLOOKUP(N46,'Pivot Tables'!$G$3:$I$1048576,3)*1000 -> 7.65
B45: TTHM Goal LRRA ≤ 20 mg/L and HAA5 Goal LRAA ≤ 15 mg/L
C46: =EDATE(D46,-3) -> 2015-03-01 | D46: 2015-06-01 | E46: 2015-09-01 | F46: 2015-12-01 | G46: 2016-03-01 | H46: 2016-06-01 | I46: 2016-09-01 | J46: 2016-12-01 | K46: 2017-03-01 | L46: 2017-06-01 | M46: 2017-09-01 | N46: =EDATE(N6,0) -> 2017-12-01

Sheet Pivot Tables (hidden)
B1: DBP IND | C1: NO | G1: DBP IND | H1: YES
B3: Row Labels | C3: Average of Raw TOC | D3: Average of Raw Alk. | E3: Average of Fin. TOC | G3: Row Labels | H3: Average of Fin. TTHM | I3: Average of Fin HAA5
B4: 2015-01-01 | C4: 2.3 | D4: 4 | E4: 1.5 | G4: 2012-01-01 | H4: 0.056 | I4: 0.0476
B5: 2015-02-01 | C5: 1.2 | D5: 4 | E5: 0.9 | G5: 2012-04-01 | H5: 0.0572 | I5: 0.0287
B6: 2015-03-01 | C6: 2.2 | D6: 5 | E6: 1.3 | G6: 2012-07-01 | H6: 0.0341 | I6: 0.0193
B7: 2015-04-01 | C7: 5 | D7: 4 | E7: 1.4 | G7: 2012-10-01 | H7: 0.0426 | I7: 0.042
B8: 2015-05-01 | C8: 2.3 | D8: 4 | E8: 1.1 | G8: 2013-01-01 | H8: 0.047 | I8: 0.0572
B9: 2015-06-01 | C9: 2.6 | D9: 5 | E9: 1.3 | G9: 2013-04-01 | H9: 0.0514 | I9: 0.0158
B10: 2015-07-01 | C10: 1.5 | D10: 4 | E10: 0.8 | G10: 2013-07-01 | H10: 0.0394 | I10: 0.0154
B11: 2015-08-01 | C11: 1.4 | D11: 5 | E11: 0.7 | G11: 2013-10-01 | H11: 0.0532 | I11: 0.0395
B12: 2015-09-01 | C12: 1.8 | D12: 5 | E12: 0.8 | G12: 2014-01-01 | H12: 0.03531 | I12: 0.0326
B13: 2015-10-01 | C13: 1.5 | D13: 5 | E13: 0.8 | G13: 2014-04-01 | H13: 0.0566 | I13: 0.0181
B14: 2015-11-01 | C14: 3.1 | D14: 5 | E14: 1.5 | G14: 2014-07-01 | H14: 0.0394 | I14: 0.0158
B15: 2015-12-01 | C15: 4.8 | D15: 6 | E15: 2.4 | G15: 2014-10-01 | H15: 0.0338 | I15: 0.0129
B16: 2016-01-01 | C16: 1.4 | D16: 4 | E16: 0.9 | G16: 2015-01-01 | H16: 0.0435 | I16: 0.0531
B17: 2016-02-01 | C17: 5.8 | D17: 5 | E17: 2.2 | G17: 2015-04-01 | H17: 0.0316 | I17: 0.0104
B18: 2016-03-01 | C18: 2.6 | D18: 4 | E18: 1.4 | G18: 2015-07-01 | H18: 0.04 | I18: 0.0141
B19: 2016-04-01 | C19: 1.8 | D19: 5 | E19: 1.1 | G19: 2015-10-01 | H19: 0.044 | I19: 0.044
B20: 2016-05-01 | C20: 2.3 | D20: 5 | E20: 1.2 | G20: 2016-01-01 | H20: 0.0749 | I20: 0.0632
B21: 2016-06-01 | C21: 1.6 | D21: 4 | E21: 0.7 | G21: 2016-04-01 | H21: 0.0268 | I21: 0.0111
B22: 2016-07-01 | C22: 3.3 | D22: 5 | E22: 2.1 | G22: 2016-07-01 | H22: 0.0358 | I22: 0.019
B23: 2016-08-01 | C23: 2.4 | D23: 5 | E23: 1.4 | G23: 2016-10-01 | H23: 0.0336 | I23: 0.0191
B24: 2016-09-01 | C24: 1.4 | D24: 4 | E24: 0.8 | G24: 2017-01-01 | H24: 0.0226 | I24: 0.0115
B25: 2016-10-01 | C25: 1.4 | D25: 6 | E25: 0.7 | G25: 2017-04-01 | H25: 0.0242 | I25: 0.00798
B26: 2016-11-01 | C26: 1.9 | D26: 6 | E26: 0.9 | G26: 2017-07-01 | H26: 0.0337 | I26: 0.0145
B27: 2016-12-01 | C27: 4 | D27: 6 | E27: 2.9 | G27: 2017-10-01 | H27: 0.0157 | I27: 0.00765
B28: 2017-01-01 | C28: 2.7 | D28: 4 | E28: 1.9
B29: 2017-02-01 | C29: 1.7 | D29: 6 | E29: 1
B30: 2017-03-01 | C30: 3.4 | D30: 5 | E30: 2.3
B31: 2017-04-01 | C31: 2.8 | D31: 5 | E31: 1.45
B32: 2017-05-01 | C32: 1.8 | D32: 4 | E32: 0.9
B33: 2017-06-01 | C33: 4 | D33: 5 | E33: 2.2
B34: 2017-07-01 | C34: 1.7 | D34: 6 | E34: 0.8
B35: 2017-08-01 | C35: 1.4 | D35: 4 | E35: 0.5
B36: 2017-09-01 | C36: 3.4 | D36: 6 | E36: 1.6
B37: 2017-10-01 | C37: 1.7 | D37: 5 | E37: 0.9
B38: 2017-11-01 | C38: 1.8 | D38: 5 | E38: 0.9
B39: 2017-12-01 | C39: 5.2 | D39: 6 | E39: 3
